bitfinex-derivatives/quotes_SOLF0:USTF0_20241229
["timestamp","ask_amount","ask_price","bid_price","bid_amount"]
[1735487760918,8.03574644,195.7,195.64,8.03574644]
[1735487761120,8.03574644,195.68,195.63,7.1128]
[1735487761420,8.03574644,195.68,195.63,4.1128]
[1735487762417,2.5599,195.66,195.63,4.1128]
[1735487770624,2.56,195.65,195.62,13.59614644]
[1735487773232,2.56,195.65,195.62,11.03574644]
[1735487773528,2.56,195.65,195.63,2.5603]
[1735487773727,2.5599,195.66,195.63,2.5603]
[1735487774830,2.5597,195.68,195.65,2.56]
[1735487775425,2.5598,195.67,195.64,10.59584644]
[1735487777030,2.5593,195.71,195.67,2.5597]
[1735487777327,8.03574644,195.72,195.66,8.03574644]
[1735487778530,10.59484644,195.72,195.68,2.5596]
[1735487780933,2.5593,195.71,195.68,2.5596]
[1735487783335,2.5593,195.71,195.66,8.03574644]
[1735487783532,2.5593,195.71,195.67,2.5597]
[1735487790447,10.59504644,195.71,195.67,2.5597]
[1735487792046,2.5594,195.7,195.67,2.5597]
[1735487792349,8.03574644,195.71,195.66,3.0]
[1735487793043,2.5597,195.68,195.66,3.0]
[1735487794049,2.5597,195.67,195.66,3.0]
[1735487795059,2.5597,195.67,195.64,2.5601]
[1735487795244,8.03574644,195.67,195.63,3.0]
[1735487795464,2.5599,195.66,195.63,3.0]
[1735487796454,2.5599,195.66,195.63,5.5603]
[1735487798356,2.5599,195.66,195.63,13.59604644]
[1735487799455,1.166,195.75,195.63,11.03574644]
[1735487799653,8.03574644,195.7,195.63,11.03574644]
[1735487800156,10.59524644,195.7,195.66,2.5598]
[1735487800354,8.03574644,195.7,195.66,2.5598]
[1735487801458,2.5595,195.69,195.66,2.5598]
[1735487803853,4.1142978,195.76,195.65,8.03574644]
[1735487804055,8.03574644,195.73,195.65,8.03574644]
[1735487805061,8.03574644,195.73,195.69,2.5594]
[1735487806257,8.03574644,195.71,195.69,2.5594]
[1735487807454,8.03574644,195.71,195.6,27.90166694]
[1735487807657,3.0,195.75,195.62,8.03574644]
[1735487807863,8.03574644,195.68,195.65,2.5599]
[1735487808063,8.03574644,195.68,195.62,8.03574644]
[1735487808360,8.03574644,195.7,195.62,8.03574644]
[1735487809364,8.03574644,195.7,195.63,4.80264075]
[1735487809663,10.59514644,195.7,195.66,2.5598]
[1735487811373,8.03574644,195.69,195.66,2.5598]
[1735487815965,10.59524644,195.69,195.66,2.5598]
[1735487816366,10.59524644,195.69,195.65,3.0]
[1735487816566,10.59524644,195.69,195.65,5.56]
[1735487817864,8.03574644,195.69,195.65,5.56]
[1735487818166,2.5597,195.68,195.65,5.56]
[1735487823566,2.5591,195.72,195.67,2.5597]
[1735487823766,8.03574644,195.7,195.67,2.5597]
[1735487827571,2.5593,195.71,195.67,2.5597]
[1735487827770,8.03574644,195.7,195.67,2.5597]
[1735487833172,2.5593,195.71,195.65,3.0]
[1735487833370,10.59504644,195.71,195.65,3.0]
[1735487833970,10.59504644,195.71,195.67,2.5596]
[1735487836473,6.30810287,195.77,195.65,11.03574644]
[1735487836676,2.46670507,195.77,195.69,8.03574644]
[1735487836876,2.46670507,195.77,195.71,8.03574644]
[1735487837067,10.50245151,195.77,195.74,2.5587]
[1735487837767,8.03574644,195.77,195.74,2.5587]
[1735487838668,2.5583,195.78,195.74,2.5587]
[1735487838870,1.3436,195.86,195.72,3.0]
[1735487838871,266.91792696,195.92,195.73,8.03574644]
[1735487839076,8.03574644,195.8,195.75,8.03574644]
[1735487839673,6.24028296,195.88,195.75,8.03574644]
[1735487839869,8.03574644,195.82,195.75,8.03574644]
[1735487840777,8.03574644,195.82,195.8,2.5579]
[1735487840975,8.03574644,195.82,195.8,5.5579]
[1735487841580,6.24028296,195.88,195.8,3.0]
[1735487841778,8.03574644,195.85,195.8,3.0]
[1735487842179,2.5572,195.87,195.8,3.0]
[1735487842376,2.40071514,195.88,195.8,3.0]
[1735487842580,8.03574644,195.86,195.8,6.4279]
[1735487842879,8.03574644,195.86,195.81,8.03574644]
[1735487843174,1.5587,195.95,195.81,8.03574644]
[1735487843375,8.03574644,195.88,195.81,8.03574644]
[1735487844474,8.03574644,195.88,195.86,2.5572]
[1735487845177,2.5567,195.91,195.85,3.0]
[1735487845378,8.03574644,195.88,195.87,2.5571]
[1735487846978,3.83837401,195.97,195.85,11.03574644]
[1735487847174,8.03574644,195.92,195.85,11.03574644]
[1735487847374,8.03574644,195.93,195.87,2.5571]
[1735487847576,8.03574644,195.93,195.85,11.03574644]
[1735487848176,8.03574644,195.93,195.91,2.5565]
[1735487848481,8.03574644,195.92,195.9,3.0]
[1735487848877,8.03574644,195.92,195.9,5.5566]
[1735487850584,2.5561,195.95,195.9,5.5566]
[1735487850779,8.03574644,195.92,195.9,5.5566]
[1735487851487,8.03574644,195.92,195.87,3.0]
[1735487851683,8.03574644,195.88,195.87,3.0]
[1735487852384,8.03574644,195.88,195.83,3.0]
[1735487852583,2.2185,195.96,195.83,3.0]
[1735487852584,8.03574644,195.85,195.83,3.0]
[1735487853085,8.03574644,195.85,195.8,5.0834]
[1735487853285,8.03574644,195.83,195.81,3.0]
[1735487854481,8.03574644,195.83,195.81,5.5579]
[1735487854689,2.5575,195.85,195.81,5.5579]
[1735487857084,8.03574644,195.86,195.81,3.0]
[1735487857489,2.5562,195.95,195.91,2.5566]
[1735487857688,2.5562,195.95,195.89,3.0]
[1735487857878,8.03574644,195.96,195.9,3.0]
[1735487859184,8.03574644,195.94,195.9,3.0]
[1735487859996,2.5565,195.92,195.9,3.0]
[1735487860181,2.5565,195.92,195.88,5.557]
[1735487860381,2.5565,195.92,195.88,13.59274644]
[1735487860990,10.59204644,195.94,195.89,2.5568]
[1735487861784,2.5564,195.93,195.89,2.5568]
[1735487863890,8.03574644,195.94,195.88,11.03574644]
[1735487864092,10.59194644,195.94,195.9,2.5567]
[1735487864688,8.03574644,195.94,195.91,2.5566]
[1735487865285,8.03574644,195.96,195.88,11.03574644]
[1735487865490,8.03574644,195.96,195.9,8.03574644]
[1735487865989,8.03574644,195.96,195.94,2.5562]
[1735487866385,2.2183,196.03,195.9,8.03574644]
[1735487866594,2.2183,196.03,195.9,9.83024644]
[1735487866795,8.03574644,195.98,195.95,2.5561]
[1735487867694,10.59144644,195.98,195.93,3.0]
[1735487868394,10.59144644,195.98,195.94,2.5562]
[1735487868595,2.5557,195.98,195.94,2.5562]
[1735487868795,8.03574644,195.97,195.94,2.5562]
[1735487869291,8.03574644,195.97,195.93,3.0]
[1735487869489,8.03574644,195.97,195.89,3.4843]
[1735487869490,8.03574644,195.95,195.89,3.4843]
[1735487869795,8.03574644,195.93,195.89,3.4843]
[1735487871093,8.03574644,195.93,195.89,1.812]
[1735487871796,10.59214644,195.93,195.9,2.5567]
[1735487872693,10.59214644,195.93,195.89,1.812]
[1735487872694,2.5565,195.92,195.89,2.5569]
[1735487873100,2.2183,196.03,195.91,8.03574644]
[1735487873298,8.03574644,195.98,195.95,2.5561]
[1735487876014,10.59144644,195.98,195.95,2.5561]
[1735487878319,2.5557,195.98,195.95,2.5561]
[1735487878512,10.59144644,195.98,195.95,2.5561]
[1735487884023,8.03574644,195.96,195.94,2.5562]
[1735487886426,8.03574644,195.96,195.93,5.5563]
[1735487887025,10.59174644,195.96,195.93,5.5563]
[1735487888422,8.03574644,195.94,195.89,4.2668]
[1735487888629,8.03574644,195.94,195.9,3.0]
[1735487889228,2.2183,196.03,195.9,3.0]
[1735487889426,8.03574644,195.95,195.9,3.0]
[1735487889725,7.62103746,197.29,195.9,3.0]
[1735487889726,3.0,196.07,195.91,8.03574644]
[1735487889927,8.03574644,195.99,195.93,8.03574644]
[1735487890920,10.59144644,195.99,195.95,2.556]
[1735487892622,8.03574644,195.99,195.92,2.5564]
[1735487892828,8.03574644,195.97,195.92,2.5564]
[1735487893325,2.5561,195.96,195.92,2.5564]
[1735487894332,2.5561,195.95,195.92,2.5564]
[1735487894631,8.03574644,195.97,195.92,2.5564]
[1735487894832,2.5557,195.98,195.94,2.5561]
[1735487895128,10.59144644,195.98,195.94,2.5561]
[1735487897033,10.59144644,195.98,195.92,8.03574644]
[1735487897234,10.59144644,195.98,195.95,2.5561]
[1735487897536,2.5559,195.97,195.92,8.03574644]
[1735487897833,2.5559,195.97,195.9,11.03574644]
[1735487899535,2.5559,195.97,195.93,2.5562]
[1735487899836,2.5559,195.97,195.9,11.03574644]
[1735487900337,2.5559,195.97,195.93,2.5562]
[1735487902532,2.5559,195.97,195.92,2.5565]
[1735487902732,2.5559,195.97,195.9,11.03574644]
[1735487903338,2.5559,195.97,195.93,2.5563]
[1735487903741,8.03574644,195.96,195.91,2.5566]
[1735487904038,8.03574644,195.94,195.91,2.5566]
[1735487904441,8.03574644,195.92,195.88,3.0]
[1735487905538,10.59224644,195.92,195.89,2.5568]
[1735487906953,8.03574644,195.92,195.88,3.0]
[1735487908942,2.5566,195.91,195.88,5.557]
[1735487910540,2.5566,195.91,195.88,2.557]
[1735487911544,8.03574644,195.92,195.88,2.557]
[1735487911739,8.03574644,195.92,195.86,3.0]
[1735487912946,8.03574644,195.92,195.89,2.5568]
[1735487913146,2.5565,195.92,195.89,2.5568]
[1735487913346,10.59224644,195.92,195.89,2.5568]
[1735487913740,10.59224644,195.92,195.88,2.557]
[1735487915143,8.03574644,195.9,195.86,5.5573]
[1735487915340,8.03574644,195.9,195.86,3.0]
[1735487916139,8.03574644,195.9,195.85,6.3216937]
[1735487916140,2.5569,195.89,195.85,6.3216937]
[1735487918953,2.5569,195.89,195.86,2.5573]
[1735487920051,2.5573,195.86,195.81,2.5578]
[1735487920248,8.03574644,195.84,195.78,8.03574644]
[1735487920450,8.03574644,195.84,195.77,1.8205]
[1735487920651,8.03574644,195.84,195.77,4.8205]
[1735487921048,8.03574644,195.82,195.77,1.8205]
[1735487921252,8.03574644,195.82,195.76,3.0]
[1735487921753,8.03574644,195.82,195.75,2.5586]
[1735487922148,8.03574644,195.82,195.74,12.85144644]
[1735487922348,8.03574644,195.8,195.74,3.0]
[1735487922747,8.03574644,195.8,195.73,54.61418486]
[1735487922951,8.03574644,195.78,195.73,54.61418486]
[1735487923453,10.59414644,195.78,195.73,54.61418486]
[1735487923644,8.03574644,195.76,195.71,2.5592]
[1735487924452,10.59434644,195.76,195.71,2.5592]
[1735487924653,8.03574644,195.76,195.7,3.0]
[1735487924956,8.03574644,195.74,195.7,5.5593]
[1735487925151,2.559,195.73,195.68,3.0]
[1735487925559,2.559,195.73,195.69,2.5595]
[1735487925757,8.03574644,195.72,195.67,1.8157]
[1735487926056,2.5592,195.71,195.65,3.77997896]
[1735487926756,2.5592,195.71,195.66,2.5598]
[1735487926958,2.8807,195.84,195.68,8.03574644]
[1735487927150,8.03574644,195.76,195.68,8.03574644]
[1735487928559,10.59434644,195.76,195.71,2.5592]
[1735487929258,8.03574644,195.74,195.71,2.5592]
[1735487929661,8.03574644,195.72,195.67,2.5597]
[1735487929866,8.03574644,195.69,195.65,3.77997896]
[1735487930651,8.03574644,195.67,195.6,5.342]
[1735487930853,8.03574644,195.67,195.61,3.0]
[1735487931160,8.03574644,195.67,195.62,2.5604]
[1735487931364,8.03574644,195.65,195.62,2.5604]
[1735487931553,8.03574644,195.65,195.59,3.0]
[1735487931861,8.03574644,195.63,195.61,2.5605]
[1735487932059,8.03574644,195.63,195.55,34.84107858]
[1735487932258,8.03574644,195.63,195.53,5.3599]
[1735487932461,8.03574644,195.61,195.54,8.03574644]
[1735487932961,8.03574644,195.61,195.56,2.5612]
[1735487933465,3.0,195.67,195.57,2.561]
[1735487933756,8.03574644,195.58,195.53,3.5437]
[1735487934462,8.03574644,195.58,195.55,2.5613]
[1735487935658,8.03574644,195.56,195.54,2.5614]
[1735487935863,8.03574644,195.56,195.45,8.03574644]
[1735487936063,8.03574644,195.52,195.45,12.85684644]
[1735487936359,12.58681357,195.55,195.45,4.8211]
[1735487937863,15.14821357,195.55,195.45,4.8211]
[1735487938864,15.14821357,195.55,195.52,2.5617]
[1735487938865,12.58681357,195.55,195.52,2.5617]
[1735487939864,12.58681357,195.55,195.53,2.5616]
[1735487940566,12.58681357,195.58,195.54,2.5614]
[1735487940761,12.58681357,195.58,195.47,12.58681357]
[1735487940960,12.58681357,195.61,195.5,15.58681357]
[1735487941157,12.58681357,195.61,195.51,6.335]
[1735487942965,12.58681357,195.61,195.57,2.5609]
[1735487943868,12.58681357,195.61,195.51,6.335]
[1735487944065,12.58681357,195.58,195.51,6.335]
[1735487944267,12.58681357,195.58,195.51,3.0]
[1735487944471,15.14821357,195.55,195.49,2.562]
[1735487944664,12.58681357,195.52,195.46,1.6689]
[1735487945164,15.14851357,195.52,195.47,2.5623]
[1735487945367,15.14851357,195.52,195.46,1.6689]
[1735487945565,15.14851357,195.52,195.44,10.32878517]
[1735487945759,15.14851357,195.52,195.44,7.32878517]
[1735487945974,12.58681357,195.49,195.47,2.5623]
[1735487947071,12.58681357,195.49,195.42,1.697]
[1735487947867,12.58681357,195.43,195.35,6.4179]
[1735487948271,12.58681357,195.43,195.35,4.7182]
[1735487948472,12.58681357,195.43,195.38,2.5635]
[1735487948770,12.58681357,195.43,195.35,4.7182]
[1735487950068,12.58681357,195.43,195.38,2.5634]
[1735487950562,12.58681357,195.43,195.35,4.7182]
[1735487950868,12.58681357,195.46,195.35,4.7182]
[1735487951082,12.58681357,195.46,195.36,1.6519]
[1735487951376,12.58681357,195.46,195.42,2.5629]
[1735487952672,12.58681357,195.46,195.43,2.5629]
[1735487953367,12.58681357,195.46,195.41,2.5631]
[1735487953978,12.58681357,195.43,195.39,2.5633]
[1735487954176,12.58681357,195.43,195.36,1.6519]
[1735487955475,12.58681357,195.43,195.4,2.5632]
[1735487956180,12.58681357,195.43,195.36,1.6519]
[1735487956975,12.58681357,195.43,195.39,2.5634]
[1735487958379,12.58681357,195.43,195.4,2.5632]
[1735487959084,12.58681357,195.43,195.39,2.5634]
[1735487959384,15.14971357,195.43,195.39,2.5634]
[1735487960480,15.14971357,195.43,195.39,2.5633]
[1735487960784,12.58681357,195.43,195.36,1.6519]
[1735487961683,12.58681357,195.43,195.4,2.5632]
[1735487961984,12.58681357,195.43,195.36,1.6519]
[1735487962381,12.58681357,195.43,195.41,2.563]
[1735487962687,12.58681357,195.46,195.36,1.6519]
[1735487963781,12.58681357,195.46,195.39,2.5634]
[1735487963986,12.58681357,195.46,195.36,1.6519]
[1735487965187,12.58681357,195.46,195.43,2.5628]
[1735487965581,12.58681357,195.46,195.39,3.0]
[1735487966081,15.14931357,195.46,195.39,3.0]
[1735487966487,15.14931357,195.46,195.41,2.5631]
[1735487966689,2.5629,195.43,195.39,3.0]
[1735487967090,15.14971357,195.43,195.39,3.0]
[1735487967589,15.14971357,195.43,195.38,2.5635]
[1735487968289,15.14971357,195.43,195.36,1.6519]
[1735487968587,15.14971357,195.43,195.39,2.5634]
[1735487974190,8.06476604,195.4,195.39,2.5634]
[1735487974786,8.06476604,195.4,195.37,2.5636]
[1735487974990,8.06476604,195.38,195.37,2.5636]
[1735487975293,8.06476604,195.38,195.35,4.7182]
[1735487975294,8.06476604,195.38,195.36,2.5638]
[1735487976491,8.06476604,195.38,195.33,3.0]
[1735487977291,8.06476604,195.38,195.36,2.5637]
[1735487977484,8.06476604,195.38,195.32,4.6816]
[1735487977887,8.06476604,195.38,195.35,2.5639]
[1735487978087,10.62856604,195.36,195.3,35.0895087]
[1735487978292,8.06476604,195.36,195.3,33.4100087]
[1735487978485,3.0,195.42,195.3,33.4100087]
[1735487978691,8.06476604,195.37,195.3,13.5731078]
[1735487978891,8.06476604,195.35,195.3,5.50834176]
[1735487979592,8.06476604,195.35,195.34,2.564]
[1735487980293,8.06476604,195.35,195.33,2.5642]
[1735487981483,8.06476604,195.35,195.34,2.5641]
[1735487981687,3.0,195.42,195.3,11.8441078]
[1735487981883,8.06476604,195.37,195.3,11.8441078]
[1735487982593,8.06476604,195.37,195.35,2.5639]
[1735487984293,2.564,195.35,195.31,5.5644]
[1735487984493,8.06476604,195.33,195.31,2.5644]
[1735487986185,8.06476604,195.33,195.26,3.4942]
[1735487986391,8.06476604,195.31,195.3,2.5646]
[1735487987197,8.06476604,195.31,195.28,2.5647]
[1735487987496,8.06476604,195.29,195.23,57.45244537]
[1735487987696,8.06476604,195.29,195.23,54.45244537]
[1735487987895,8.06476604,195.25,195.23,54.45244537]
[1735487988191,8.06476604,195.25,195.2,1.8224]
[1735487988192,8.06476604,195.25,195.2,4.8224]
[1735487988392,8.06476604,195.23,195.22,2.5655]
[1735487989298,8.06476604,195.23,195.17,8.79941673]
[1735487989595,1.559,195.31,195.17,4.824]
[1735487989596,8.06476604,195.21,195.17,4.824]
[1735487989797,8.06476604,195.21,195.17,3.0]
[1735487990093,2.9013,195.31,195.19,8.06476604]
[1735487990292,12.61967555,195.29,195.17,15.61967555]
[1735487990891,15.18457555,195.29,195.24,2.5653]
[1735487993598,12.61967555,195.26,195.22,2.5655]
[1735487994495,15.18477555,195.26,195.22,2.5655]
[1735487994995,12.61967555,195.26,195.22,2.5655]
[1735487995200,2.5653,195.25,195.22,2.5655]
[1735487995396,2.5653,195.25,195.21,2.5658]
[1735487996591,12.61967555,195.26,195.16,1.8164]
[1735487996796,2.5655,195.24,195.19,2.5659]
[1735487996996,12.61967555,195.26,195.19,2.5659]
[1735487997300,2.5658,195.22,195.16,1.8164]
[1735487997597,12.61967555,195.26,195.16,1.8164]
[1735487997794,2.5653,195.25,195.2,2.5658]
[1735487998501,2.5653,195.25,195.21,2.5657]
[1735487999895,2.5653,195.25,195.16,1.8164]
[1735487999896,12.61967555,195.26,195.23,2.5654]
[1735488000197,12.61967555,195.29,195.19,3.0]
[1735488000610,4.559,195.31,195.19,3.0]
[1735488000798,2.5648,195.29,195.26,2.5651]
[1735488001228,1.3465,195.38,195.2,1.7606]
[1735488001516,5.19606343,195.38,195.25,2.5652]
[1735488001718,2.58609862,195.37,195.25,2.5652]
[1735488001912,2.5648,195.29,195.25,2.5652]
[1735488002214,2.58609862,195.37,195.27,2.5649]
[1735488002408,1.02369862,195.37,195.27,2.5649]
[1735488002604,1.02369862,195.37,195.25,1.7422]
[1735488002898,2.5647,195.3,195.26,2.5651]
[1735488003095,1.02369862,195.37,195.26,2.5651]
[1735488003291,2.5647,195.3,195.25,4.3073]
[1735488003499,1.02369862,195.37,195.25,4.3073]
[1735488003700,1.02369862,195.37,195.25,1.7422]
[1735488005401,1.02369862,195.37,195.26,3.0]
[1735488005803,1.02369862,195.37,195.25,1.7422]
[1735488006002,1.02369862,195.37,195.29,2.5647]
[1735488006399,2.5646,195.3,195.26,2.5651]
[1735488006906,1.5616,195.35,195.23,3.0]
[1735488007109,1.5616,195.35,195.25,2.5652]
[1735488007703,1.5616,195.35,195.23,3.0]
[1735488007704,1.5616,195.35,195.24,2.5653]
[1735488008404,1.5616,195.35,195.22,3.0]
[1735488008906,2.5641,195.34,195.25,2.5651]
[1735488009106,2.5641,195.34,195.22,3.0]
[1735488009304,1.5616,195.35,195.22,3.0]
[1735488010005,1.5616,195.35,195.17,3.0]
[1735488010200,2.565,195.28,195.17,3.0]
[1735488010803,2.565,195.28,195.24,2.5653]
[1735488011999,2.565,195.27,195.23,2.5655]
[1735488012304,3.0,195.31,195.2,3.0]
[1735488012501,2.5652,195.26,195.21,2.5657]
[1735488012802,3.0,195.31,195.2,3.0]
[1735488013002,1.5616,195.35,195.2,3.0]
[1735488013202,4.5616,195.35,195.21,1.6792]
[1735488014407,2.5644,195.32,195.21,1.6792]
[1735488014708,1.7722,195.36,195.21,1.6792]
[1735488015013,2.5642,195.33,195.21,1.6792]
[1735488015512,1.02369862,195.37,195.21,1.6792]
[1735488015713,5.63816963,195.44,195.21,1.6792]
[1735488015911,2.5633,195.4,195.21,1.6792]
[1735488016303,2.5633,195.4,195.22,4.79083529]
[1735488016708,2.5633,195.4,195.23,4.79083529]
[1735488016904,2.5629,195.43,195.23,4.79083529]
[1735488017107,85.3181712,195.47,195.24,4.79083529]
[1735488017308,12.60768798,195.38,195.26,12.60768798]
[1735488017611,2.5639,195.35,195.27,3.0]
[1735488017809,12.60768798,195.38,195.3,2.5646]
[1735488018411,12.60768798,195.38,195.3,5.5646]
[1735488019314,12.60768798,195.38,195.3,3.0]
[1735488019614,12.60768798,195.38,195.31,2.5645]
[1735488019615,2.5639,195.36,195.31,2.5645]
[1735488019805,12.60768798,195.38,195.3,3.0]
[1735488020007,2.5639,195.35,195.31,2.5643]
[1735488020206,12.60768798,195.35,195.3,3.0]
[1735488021114,12.60768798,195.35,195.28,3.0]
[1735488021511,12.60768798,195.38,195.28,3.0]
[1735488022121,12.60768798,195.38,195.29,5.5647]
[1735488022308,12.60768798,195.35,195.29,5.5647]
[1735488022816,2.5642,195.34,195.29,2.5647]
[1735488023113,2.5642,195.34,195.3,2.5646]
[1735488023811,15.17168798,195.35,195.3,2.5646]
[1735488024215,15.17168798,195.35,195.28,3.0]
[1735488024417,12.60768798,195.38,195.28,3.0]
[1735488025114,12.60768798,195.38,195.31,2.5645]
[1735488025515,2.564,195.35,195.31,2.5645]
[1735488027911,12.60768798,195.38,195.28,3.0]
[1735488028116,2.5639,195.36,195.31,2.5645]
[1735488029011,2.5645,195.31,195.27,2.5649]
[1735488029216,2.5645,195.31,195.25,3.436]
[1735488029217,2.5645,195.31,195.25,6.436]
[1735488030120,2.5644,195.32,195.28,2.5648]
[1735488033122,12.60768798,195.33,195.25,6.436]
[1735488033316,2.5641,195.34,195.25,6.436]
[1735488033821,2.5639,195.36,195.25,6.436]
[1735488034823,2.5639,195.36,195.32,2.5643]
[1735488035523,2.5637,195.37,195.33,2.5642]
[1735488036122,2.5635,195.39,195.3,3.0]
[1735488036521,2.5635,195.39,195.31,1.6889]
[1735488037226,12.60768798,195.41,195.31,1.6889]
[1735488037522,2.5633,195.4,195.31,1.6889]
[1735488037718,12.60768798,195.44,195.38,2.5635]
[1735488037925,2.2897636,195.45,195.37,3.02]
[1735488038121,85.3181712,195.46,195.38,3.02]
[1735488038319,85.3181712,195.46,195.42,2.563]
[1735488038515,85.3181712,195.46,195.38,3.02]
[1735488038924,85.3181712,195.46,195.43,2.5629]
[1735488039124,2.5624,195.47,195.43,2.5629]
[1735488039921,2.5624,195.47,195.43,5.5829]
[1735488041628,12.60768798,195.48,195.43,5.5829]
[1735488041629,2.5622,195.48,195.43,5.5829]
[1735488042825,12.60768798,195.51,195.46,2.5625]
[1735488044526,12.60768798,195.51,195.44,1.7965]
[1735488044828,12.60768798,195.48,195.42,3.02]
[1735488045026,12.60768798,195.48,195.39,1.7605]
[1735488045027,2.5625,195.47,195.39,1.7605]
[1735488045326,12.60768798,195.48,195.4,5.5832]
[1735488046424,2.5628,195.44,195.4,3.02]
[1735488046628,2.5628,195.44,195.36,1.6902]
[1735488046629,12.60768798,195.45,195.36,1.6902]
[1735488046930,12.60768798,195.39,195.33,3.02]
[1735488047326,12.60768798,195.36,195.28,4.73]
[1735488048325,2.5642,195.33,195.28,4.73]
[1735488049124,2.5642,195.33,195.28,7.2948]
[1735488049827,12.60768798,195.36,195.28,4.73]
[1735488050026,2.5641,195.34,195.29,2.5647]
[1735488052632,2.5641,195.34,195.3,2.5645]
[1735488053031,15.17158798,195.36,195.3,2.5645]
[1735488053234,12.60768798,195.36,195.3,2.5645]
[1735488053733,2.5639,195.35,195.3,2.5645]
[1735488054635,15.17148798,195.36,195.31,2.5644]
[1735488056636,2.564,195.35,195.31,2.5644]
[1735488057333,15.17148798,195.36,195.31,2.5644]
[1735488058838,15.17148798,195.36,195.29,3.02]
[1735488059037,15.17148798,195.36,195.31,2.5643]
[1735488059638,12.60768798,195.36,195.29,3.02]
[1735488059838,12.60768798,195.36,195.29,2.5647]
[1735488060340,12.60768798,195.33,195.27,3.02]
[1735488060528,12.60768798,195.33,195.18,1.7297]
[1735488060728,12.60768798,195.3,195.19,4.7806]
[1735488060933,12.60768798,195.3,195.19,1.7606]
[1735488061135,12.60768798,195.3,195.24,2.5653]
[1735488061338,12.60768798,195.3,195.19,1.7606]
[1735488061539,12.60768798,195.3,195.2,3.02]
[1735488061840,2.565,195.27,195.23,2.5654]
[1735488062140,12.60768798,195.3,195.2,3.02]
[1735488062335,12.60768798,195.3,195.27,2.565]
[1735488062538,12.60768798,195.3,195.2,3.02]
[1735488062844,2.5648,195.29,195.24,2.5653]
[1735488063042,2.5648,195.29,195.2,3.02]
[1735488064439,2.5648,195.29,195.25,2.5651]
[1735488068551,15.17228798,195.3,195.26,2.5651]
[1735488071853,12.60768798,195.3,195.26,2.565]
[1735488072657,15.17238798,195.3,195.26,2.565]
[1735488072851,12.60768798,195.3,195.24,2.5654]
[1735488073051,12.60768798,195.3,195.19,1.7606]
[1735488073353,12.60768798,195.27,195.19,4.7606]
[1735488073957,2.5655,195.24,195.2,2.5659]
[1735488076153,12.60768798,195.27,195.19,4.7606]
[1735488076358,8.078427,195.26,195.23,2.5655]
[1735488076559,8.078427,195.26,195.2,8.078427]
[1735488076859,8.078427,195.26,195.19,4.7606]
[1735488077062,8.078427,195.26,195.2,8.078427]
[1735488077354,30.0107365,195.35,195.22,8.078427]
[1735488077657,8.078427,195.29,195.22,8.078427]
[1735488078059,8.078427,195.29,195.26,2.5651]
[1735488078254,14.3306457,195.4,195.24,3.0]
[1735488078451,12.6163457,195.36,195.24,3.0]
[1735488078855,2.5643,195.33,195.29,2.5647]
[1735488079854,2.5643,195.33,195.26,3.0]
[1735488079855,12.6163457,195.37,195.26,3.0]
[1735488080055,12.6163457,195.37,195.27,3.368]
[1735488080465,2.5639,195.36,195.27,5.1107]
[1735488080961,12.6163457,195.37,195.27,5.1107]
[1735488081261,15.1800457,195.37,195.33,2.5642]
[1735488081461,12.6163457,195.37,195.33,2.5642]
[1735488082967,12.6163457,195.37,195.3,2.5645]
[1735488083269,12.6163457,195.37,195.27,8.1107]
[1735488083465,2.5642,195.33,195.28,2.5647]
[1735488083676,2.5642,195.33,195.27,8.1107]
[1735488083972,2.5641,195.34,195.29,2.5647]
[1735488085063,2.5641,195.34,195.3,2.5646]
[1735488086773,2.5644,195.32,195.28,5.5648]
[1735488086969,12.6163457,195.34,195.27,1.6627]
[1735488087174,12.6163457,195.34,195.2,12.6163457]
[1735488087175,12.6163457,195.31,195.2,12.6163457]
[1735488087375,3.0,195.38,195.23,12.6163457]
[1735488087771,2.5644,195.32,195.23,12.6163457]